bitfinex-derivatives/quotes_ETHF0:USTF0_20250224
["timestamp","ask_amount","ask_price","bid_price","bid_amount"]
[1740406165237,6.2968,2675.0,2674.8,0.74767]
[1740406165444,6.2968,2675.0,2674.9,0.74767]
[1740406165643,7.04444,2675.0,2674.9,0.74767]
[1740406166143,6.2968,2675.0,2674.9,0.74767]
[1740406166438,6.2968,2675.0,2674.7,0.563]
[1740406166637,0.74769,2674.9,2674.8,0.74767]
[1740406166837,0.74767,2674.9,2674.8,0.74767]
[1740406167040,7.04446,2675.0,2674.9,0.74767]
[1740406167238,6.2968,2675.0,2674.9,0.74767]
[1740406167437,7.04444,2675.0,2674.9,0.74767]
[1740406167946,6.2968,2675.0,2674.9,0.74767]
[1740406168143,0.00560999,2675.3,2674.7,3.7708]
[1740406168640,0.00560999,2675.3,2675.0,3.2078]
[1740406172737,0.00560999,2675.3,2674.7,4.3507]
[1740406173245,3.08660999,2675.3,2674.7,4.3507]
[1740406178042,0.00560999,2675.3,2675.0,3.2078]
[1740406178251,0.00560999,2675.3,2675.1,0.5898]
[1740406187759,9.99e-06,2675.3,2675.1,0.5898]
[1740406187961,9.99e-06,2675.3,2675.1,3.5438]
[1740406188153,9.99e-06,2675.3,2675.1,44.3438]
[1740406188855,9.99e-06,2675.3,2675.1,50.3438]
[1740406191662,9.99e-06,2675.3,2675.1,44.3438]
[1740406191859,9.99e-06,2675.3,2675.1,50.3438]
[1740406192058,9.99e-06,2675.3,2675.1,3.5438]
[1740406192257,9.99e-06,2675.3,2675.2,3.049]
[1740406192557,9.99e-06,2675.3,2675.1,3.5438]
[1740406192757,9.99e-06,2675.3,2675.1,6.5928]
[1740406198163,9.99e-06,2675.3,2675.1,3.6388]
[1740406199463,9.99e-06,2675.3,2675.1,9.6388]
[1740406199664,9.99e-06,2675.3,2675.2,40.8]
[1740406200068,9.99e-06,2675.3,2675.2,46.8]
[1740406200669,9.99e-06,2675.3,2675.2,40.8]
[1740406201871,9.99e-06,2675.3,2675.2,3.043]
[1740406202966,9.99e-06,2675.3,2675.2,11.997]
[1740406203372,1.1258,2676.6,2675.2,13.769]
[1740406203576,3.2078,2677.0,2676.4,3.2078]
[1740406203768,0.74772237,2676.9,2676.4,3.2078]
[1740406203961,0.74772237,2676.9,2676.7,3.2078]
[1740406204165,0.74772237,2676.9,2676.8,0.74714]
[1740406204365,1.6951,2677.1,2676.8,0.74714]
[1740406204566,3.2078,2677.3,2677.1,0.74706]
[1740406204875,17.44603171,2677.2,2677.1,0.74706]
[1740406205574,0.00560999,2677.2,2676.7,3.2078]
[1740406205776,0.5931,2677.1,2676.6,1.87356999]
[1740406205972,1.34017,2677.1,2677.0,0.74709]
[1740406206471,0.5931,2677.1,2676.6,0.00560999]
[1740406206769,0.5931,2677.1,2676.7,0.74717]
[1740406207074,3.2078,2676.9,2676.6,0.00560999]
[1740406207274,0.5854,2676.8,2676.7,0.74717]
[1740406208173,3.6441,2677.1,2677.0,0.74709]
[1740406208369,3.79550999,2677.2,2677.1,0.74706]
[1740406208571,3.21340999,2677.2,2677.1,0.74706]
[1740406209273,0.00560999,2677.2,2677.1,0.74706]
[1740406211774,0.00560999,2677.2,2677.1,1.29126]
[1740406212476,0.00560999,2677.2,2677.1,0.74706]
[1740406214071,9.99e-06,2677.2,2677.1,0.74706]
[1740406214265,9.99e-06,2677.2,2677.1,3.80106]
[1740406214476,9.99e-06,2677.2,2677.1,4.34996]
[1740406214976,9.99e-06,2677.2,2677.1,4.64139222]
[1740406215173,9.99e-06,2677.2,2677.1,4.34996]
[1740406216373,9.99e-06,2677.2,2677.1,3.6029]
[1740406217573,9.99e-06,2677.2,2677.0,3.2078]
[1740406218072,9.99e-06,2677.2,2677.0,6.2558]
[1740406218473,9.99e-06,2677.2,2677.0,3.2078]
[1740406218674,9.99e-06,2677.2,2676.8,3.2078]
[1740406220778,9.99e-06,2677.2,2677.1,3.2078]
[1740406223678,0.5848,2677.8,2677.1,3.2078]
[1740406223879,0.5848,2677.8,2677.4,3.2078]
[1740406226778,9.99e-06,2677.9,2677.7,3.2078]
[1740406227080,21.19832172,2678.9,2677.8,3.619]
[1740406227385,21.19832172,2678.9,2678.0,3.2078]
[1740406227581,1.0734,2678.8,2678.0,3.2078]
[1740406227785,4.1544,2678.8,2678.0,3.2078]
[1740406228084,3.2078,2678.4,2678.1,0.00560999]
[1740406228279,0.74675,2678.2,2678.1,0.00560999]
[1740406228680,0.5353,2678.2,2678.1,0.00560999]
[1740406228884,1.28205,2678.2,2678.1,0.00560999]
[1740406229086,1.28205,2678.2,2678.1,0.75238999]
[1740406229781,1.28205,2678.2,2678.1,0.00560999]
[1740406229977,1.28205,2678.2,2678.1,0.75238999]
[1740406230587,1.28205,2678.2,2678.1,0.00560999]
[1740406233491,0.74694,2677.6,2677.5,0.74691]
[1740406233687,0.74694,2677.6,2677.0,22.58367]
[1740406233688,0.74708,2677.1,2677.0,0.74705]
[1740406233887,0.74712,2677.0,2676.9,0.74709]
[1740406234083,3.2078,2677.2,2676.7,0.577]
[1740406234490,3.076,2677.3,2676.3,3.50425987]
[1740406234491,3.2078,2676.9,2676.3,3.50425987]
[1740406234687,3.2078,2676.9,2676.7,0.00560999]
[1740406235195,0.74714,2676.8,2676.7,0.00560999]
[1740406235703,1.88884,2676.8,2676.7,0.00560999]
[1740406236404,6.2828,2676.9,2676.8,0.74714]
[1740406236702,6.2828,2676.9,2676.7,0.00560999]
[1740406236904,7.02993,2676.9,2676.8,0.74714]
[1740406237496,0.74714,2676.8,2676.7,0.75275999]
[1740406238008,0.74714,2676.8,2676.7,0.75277999]
[1740406238506,3.2078,2676.9,2676.7,0.00560999]
[1740406238705,3.075,2676.8,2676.7,0.75277999]
[1740406239202,3.82214,2676.8,2676.7,0.75277999]
[1740406239503,3.82214,2676.8,2676.7,0.00560999]
[1740406240297,9.82214,2676.8,2676.7,0.00560999]
[1740406240501,0.74734,2676.1,2676.0,0.74735]
[1740406241005,0.74734,2676.1,2675.6,4.343]
[1740406241006,0.74738,2676.0,2675.9,0.74736]
[1740406241201,3.2078,2676.1,2675.6,3.7665]
[1740406241401,0.74741,2675.9,2675.8,0.7474]
[1740406241597,3.95515,2676.1,2676.0,0.74736]
[1740406242810,0.74741,2675.9,2675.8,0.74739]
[1740406243607,3.07,2676.0,2675.6,3.77210999]
[1740406244110,3.81739,2676.0,2675.9,0.74739]
[1740406244709,0.74743,2675.9,2675.8,0.7474]
[1740406244908,3.07,2676.0,2675.6,3.77210999]
[1740406245215,3.81738,2676.0,2675.9,0.74739]
[1740406245414,3.07,2676.0,2675.9,0.74739]
[1740406245611,3.2078,2676.4,2675.6,3.77210999]
[1740406245812,3.955,2676.7,2676.6,0.7472]
[1740406246013,6.2778,2676.7,2676.6,0.7472]
[1740406246210,6.2778,2676.7,2676.2,0.5814]
[1740406246507,6.2778,2676.7,2676.3,0.5625]
[1740406247311,3.2078,2676.7,2676.3,0.5625]
[1740406247603,3.072,2677.0,2676.4,3.2078]
[1740406247815,0.00560999,2677.2,2676.7,3.2078]
[1740406248315,0.00560999,2677.2,2677.1,0.74706]
[1740406248719,0.00560999,2677.2,2677.1,1.30956]
[1740406251113,3.2078,2677.9,2677.1,3.6365]
[1740406251311,3.95463,2677.9,2677.8,0.74686]
[1740406251513,3.95465,2677.9,2677.8,0.74686]
[1740406251714,3.2078,2677.9,2677.8,0.74686]
[1740406251920,3.2078,2678.2,2678.1,0.74678]
[1740406252216,3.2078,2678.2,2678.0,0.7468]
[1740406252217,0.00560999,2678.1,2678.0,0.7468]
[1740406252821,0.00560999,2678.1,2677.7,0.5744]
[1740406253216,0.00560999,2678.1,2677.7,0.74688]
[1740406253416,0.74686,2677.9,2677.7,0.74689]
[1740406253717,0.74686,2677.9,2677.8,0.74686]
[1740406254017,0.00560999,2678.1,2677.6,0.00560999]
[1740406254314,0.75238999,2678.1,2678.0,0.74681]
[1740406255116,0.00560999,2678.1,2678.0,0.74681]
[1740406256420,0.00560999,2678.1,2678.0,3.95461]
[1740406256915,0.00560999,2678.1,2678.0,0.74681]
[1740406257915,0.00560999,2678.1,2677.8,0.5445]
[1740406258218,3.95461,2678.0,2677.9,0.74683]
[1740406258419,6.2828,2678.0,2677.6,0.00560999]
[1740406258718,6.2828,2678.0,2677.7,0.74687]
[1740406258719,0.74688,2677.8,2677.7,0.74687]
[1740406259117,6.2828,2678.0,2677.6,0.00560999]
[1740406259323,6.2828,2678.0,2677.9,0.74683]
[1740406260714,6.2828,2678.0,2677.7,1.86723]
[1740406260715,0.00560999,2678.1,2678.0,0.74681]
[1740406262317,0.00560999,2678.1,2677.8,3.7916]
[1740406262515,0.00560999,2678.1,2678.0,0.74681]
[1740406263120,0.00560999,2678.1,2677.8,0.5838]
[1740406263320,0.00560999,2678.1,2677.9,3.2078]
[1740406263722,0.00560999,2678.1,2678.0,0.548]
[1740406267823,0.00560999,2678.1,2677.9,3.2078]
[1740406268123,3.21340999,2678.1,2677.6,0.00560999]
[1740406269319,3.77790999,2678.1,2677.6,0.00560999]
[1740406270126,3.95469,2677.7,2677.6,0.00560999]
[1740406270326,7.02169,2677.7,2677.6,0.00560999]
[1740406270523,0.74703,2677.2,2676.9,0.74709]
[1740406270733,0.74709,2677.0,2676.9,0.74709]
[1740406270920,0.74714,2676.8,2676.7,0.5724]
[1740406271118,3.2078,2677.0,2676.2,44.0078]
[1740406271321,0.74716,2676.8,2676.7,0.74714]
[1740406271616,0.74721,2676.6,2676.5,0.7472]
[1740406271823,1.86758,2677.2,2676.5,0.7472]
[1740406271824,3.2078,2677.3,2677.2,0.74703]
[1740406272026,6.2788,2677.3,2677.2,0.74703]
[1740406272223,3.071,2677.3,2677.2,0.74703]
[1740406272623,3.071,2677.3,2676.9,0.5724]
[1740406272927,0.74705,2677.2,2677.1,0.74704]
[1740406273321,0.74709,2677.0,2676.9,1.3195]
[1740406273524,0.74708,2677.1,2677.0,0.74707]
[1740406273717,3.81801,2677.3,2677.2,0.74703]
[1740406273920,3.071,2677.3,2676.9,0.5724]
[1740406274123,0.74707,2677.1,2677.0,0.74706]
[1740406274322,0.74709,2677.0,2676.9,1.31949]
[1740406274522,0.74716,2676.8,2676.7,0.74715]
[1740406274730,3.067,2676.9,2676.5,0.00560999]
[1740406274918,0.74717,2676.8,2676.7,0.74716]
[1740406275122,3.067,2676.9,2676.5,0.00560999]
[1740406275322,0.74719,2676.7,2676.6,0.7472]
[1740406275825,0.74719,2676.7,2676.5,0.00560999]
[1740406276027,3.2078,2676.8,2676.5,0.00560999]
[1740406276330,0.7472,2676.6,2676.5,0.75282999]
[1740406276526,0.7472,2676.6,2676.5,0.00560999]
[1740406277726,1.3199,2676.6,2676.5,0.00560999]
[1740406279326,3.2078,2676.8,2676.5,0.00560999]
[1740406279527,3.067,2676.7,2676.5,0.00560999]
[1740406279831,3.067,2676.7,2676.6,0.7472]
[1740406280428,3.2078,2677.1,2676.5,1.15030999]
[1740406280633,0.74715,2676.9,2676.8,0.74713]
[1740406281029,3.067,2676.9,2676.8,0.74714]
[1740406281732,3.067,2676.9,2676.7,0.74716]
[1740406281930,0.74719,2676.7,2676.6,0.74717]
[1740406283937,3.067,2676.9,2676.5,1.15030999]
[1740406284128,3.062,2677.0,2676.5,1.15030999]
[1740406285822,3.6368,2677.0,2676.5,1.15030999]
[1740406286434,3.2078,2676.8,2676.5,1.15030999]
[1740406286636,3.2078,2676.8,2676.5,0.00560999]
[1740406289037,3.7493,2676.8,2676.5,0.00560999]
[1740406292743,3.7493,2676.8,2676.5,0.00181843]
[1740406293934,3.2078,2676.8,2676.5,0.00181843]
[1740406294139,3.2078,2677.2,2676.5,6.94564843]
[1740406294331,3.95484,2677.2,2677.1,0.74706]
[1740406294638,3.2078,2677.2,2677.1,0.74706]
[1740406294841,0.74694,2677.6,2677.5,0.74693]
[1740406295043,3.058,2677.6,2676.9,0.5785]
[1740406295335,0.747,2677.4,2677.3,0.74699]
[1740406295538,0.747,2677.3,2677.2,1.30662]
[1740406296441,3.058,2677.6,2677.2,0.5596]
[1740406296644,3.80493,2677.6,2677.5,0.74695]
[1740406296843,3.058,2677.6,2677.5,0.74695]
[1740406297043,3.2078,2677.7,2677.6,0.74692]
[1740406297247,6.2638,2677.7,2677.6,0.74692]
[1740406297743,7.01069,2677.7,2677.6,0.74692]
[1740406297944,6.2638,2677.7,2677.6,0.74692]
[1740406298349,7.01069,2677.7,2677.6,0.74692]
[1740406298542,6.2638,2677.7,2677.6,0.74692]
[1740406298846,6.2638,2677.7,2677.2,2.42711]
[1740406299045,6.2638,2677.7,2677.2,0.5596]
[1740406299258,0.747,2677.4,2677.3,0.74698]
[1740406299745,0.747,2677.3,2677.2,1.30659]
[1740406300145,6.2638,2677.7,2677.2,0.5596]
[1740406300338,0.74695,2677.6,2677.5,0.74693]
[1740406301241,3.2078,2677.7,2677.2,0.5596]
[1740406301441,6.2588,2677.7,2677.6,0.74692]
[1740406302448,6.2588,2677.7,2677.5,0.5916]
[1740406302649,0.74692,2677.6,2677.5,1.33853]
[1740406302847,0.74692,2677.6,2677.5,0.5916]
[1740406303346,0.74703,2677.2,2677.1,3.2078]
[1740406303545,0.74703,2677.2,2677.1,0.74706]
[1740406303546,3.79503,2677.2,2677.1,0.74706]
[1740406303852,0.74706,2677.1,2677.0,1.32687]
[1740406304061,3.2078,2677.1,2676.3,1.8682]
[1740406304239,3.2078,2677.1,2676.6,0.5798]
[1740406304446,3.2078,2677.1,2677.0,0.74709]
[1740406304846,3.061,2677.2,2677.1,0.74706]
[1740406305048,3.80803,2677.2,2677.1,0.74706]
[1740406306555,1.86768,2677.1,2676.6,0.5798]
[1740406306743,0.74717,2676.7,2676.6,0.5798]
[1740406306949,3.81017,2676.7,2676.6,0.5798]
[1740406308050,0.7472,2676.6,2676.5,0.00181843]
[1740406308247,3.81018,2676.7,2676.5,0.00181843]
[1740406308556,0.7472,2676.6,2676.5,0.74902843]
[1740406310152,3.2078,2676.9,2676.4,0.5664]
[1740406310347,3.062,2676.8,2676.4,0.5664]
[1740406310745,3.062,2676.8,2676.5,3.2078]
[1740406311052,3.064,2677.2,2676.5,3.2078]
[1740406311260,3.064,2677.2,2676.4,0.5664]
[1740406311261,3.064,2677.2,2676.8,3.2078]
[1740406311454,3.064,2677.2,2676.9,0.5478]
[1740406311656,3.064,2677.2,2676.9,41.3478]
[1740406311855,3.064,2677.2,2677.0,0.5906]
[1740406312561,3.064,2677.2,2676.9,0.5478]
[1740406313055,3.2078,2677.1,2676.9,0.5478]
[1740406315262,3.7484,2677.1,2676.6,0.5906]
[1740406315458,3.2078,2676.8,2676.6,0.5906]
[1740406315666,3.06,2676.7,2676.5,0.555]
[1740406320761,3.058,2676.9,2676.5,0.555]
[1740406320962,1.6354,2677.7,2676.5,3.7628]
[1740406320963,3.2078,2677.4,2676.5,3.7628]
[1740406321159,6.2678,2677.4,2676.5,0.555]
[1740406321351,3.2078,2677.1,2676.5,0.555]
[1740406321557,6.2688,2677.1,2676.5,0.555]
[1740406322561,3.061,2677.1,2676.8,3.2078]
[1740406322762,3.061,2677.1,2676.9,0.588]
[1740406323169,3.2078,2677.7,2676.9,4.32354]
[1740406323463,3.81686,2677.9,2677.8,0.74685]
[1740406323660,0.74689,2677.8,2677.5,1.1454]
[1740406323858,3.2078,2678.0,2677.5,1.1454]
[1740406324063,7.02362,2678.0,2677.9,0.74683]
[1740406324261,0.00560999,2678.1,2678.0,0.74681]
[1740406326560,0.00560999,2678.1,2677.8,3.21340999]
[1740406326765,0.74682,2678.0,2677.9,0.74682]
[1740406327168,0.74683,2677.9,2677.8,0.00560999]
[1740406328562,3.07260999,2678.1,2677.8,0.00560999]
[1740406328763,3.07260999,2678.1,2678.0,0.74681]
[1740406329163,3.07260999,2678.1,2677.8,0.00560999]
[1740406329368,0.74683,2677.9,2677.8,0.75246999]
[1740406329568,3.2078,2678.0,2677.9,0.74683]
[1740406329963,0.74683,2677.9,2677.8,0.00560999]
[1740406330266,0.74683,2677.9,2677.8,0.75246999]
[1740406330465,0.74683,2677.9,2677.8,0.00560999]
[1740406330667,0.74683,2677.9,2677.8,0.75246999]
[1740406330871,0.74683,2677.9,2677.8,0.00560999]
[1740406331171,0.74688,2677.8,2677.7,0.74686]
[1740406331467,0.74692,2677.7,2677.6,0.7469]
[1740406331669,7.02072,2677.7,2677.6,0.7469]
[1740406332466,7.02072,2677.7,2677.4,0.00560999]
[1740406332467,6.2738,2677.7,2677.4,0.00560999]
[1740406332863,0.74695,2677.5,2677.4,0.00560999]
[1740406333057,0.74695,2677.5,2677.4,0.75257999]
[1740406333766,0.74695,2677.5,2677.4,0.00560999]
[1740406336577,0.74714,2676.8,2676.7,0.74716]
[1740406336764,0.7472,2676.7,2676.6,0.74717]
[1740406337671,0.7472,2676.6,2676.5,1.87952]
[1740406338173,0.7472,2676.7,2676.6,0.74717]
[1740406338368,8.13555,2677.0,2676.5,1.1323]
[1740406338572,8.13555,2677.0,2676.5,1.87951]
[1740406338573,0.7472,2676.6,2676.5,1.87951]
[1740406339170,6.2678,2677.0,2676.5,1.1323]
[1740406341978,6.2598,2677.3,2676.7,3.2078]
[1740406342380,6.2598,2677.3,2676.5,1.1323]
[1740406342673,3.2078,2677.0,2676.5,1.1323]
[1740406342876,3.051,2676.9,2676.5,1.1323]
[1740406344075,3.051,2676.9,2676.3,3.2078]
[1740406344471,0.5552,2676.8,2676.3,3.2078]
[1740406345575,1.6625,2676.8,2676.3,3.2078]
[1740406345775,3.2078,2676.7,2676.0,3.2078]
[1740406346078,0.00560999,2676.6,2676.0,3.2078]
[1740406347386,3.044,2676.5,2676.0,3.2078]
[1740406349385,3.044,2676.5,2675.9,1.1548]
[1740406357094,6.2518,2676.5,2675.9,1.1548]
[1740406367502,6.2518,2676.5,2675.9,0.5855]
[1740406367704,6.2518,2676.5,2675.5,3.2078]
[1740406367705,3.2078,2676.1,2675.5,3.2078]
[1740406367909,6.2518,2676.1,2675.5,3.2078]
[1740406368911,3.044,2676.1,2675.5,3.2078]
[1740406369511,6.2518,2676.1,2675.5,3.2078]
[1740406372711,3.2078,2676.1,2675.5,3.2078]
[1740406373010,3.2078,2676.1,2675.6,0.5562]
[1740406373404,3.6186,2676.2,2675.6,0.5562]
[1740406374515,3.044,2676.2,2675.6,0.5562]
[1740406376505,0.5566,2676.3,2675.6,0.5562]
[1740406376810,3.2078,2676.4,2675.6,0.5562]
[1740406377006,0.00560999,2676.6,2676.1,3.2078]
[1740406377308,0.00560999,2676.6,2676.2,1.157]
[1740406381505,0.00560999,2676.6,2676.2,1.7344]
[1740406386906,0.00560999,2676.6,2676.4,3.2078]
[1740406390615,9.99e-06,2676.6,2676.4,3.2078]
[1740406393117,9.99e-06,2676.6,2676.2,1.74000999]
[1740406396418,9.99e-06,2676.6,2676.4,3.2078]
[1740406396817,9.99e-06,2676.6,2676.2,1.74000999]
[1740406397121,9.99e-06,2676.6,2676.4,3.2078]
[1740406398815,9.99e-06,2676.6,2676.5,40.8]
[1740406401213,9.99e-06,2676.6,2676.5,46.8]
[1740406403609,4.9266,2677.7,2676.5,47.10479011]
[1740406403813,17.44042172,2677.9,2677.3,3.2078]
[1740406404013,17.44042172,2677.9,2677.4,1.1057]
[1740406404724,3.2078,2677.7,2677.4,1.1057]
[1740406404919,3.2078,2677.7,2677.4,0.5546]
[1740406405315,3.043,2677.6,2677.0,3.2078]
[1740406405519,3.2078,2677.1,2676.3,0.5639]
[1740406405717,3.2078,2676.8,2676.3,0.5639]
[1740406405914,6.2508,2676.8,2676.2,3.21340999]
[1740406406114,3.2078,2676.5,2676.2,0.00560999]
[1740406406317,1.29978,2676.4,2676.2,0.00560999]
[1740406406520,4.34178,2676.4,2676.3,0.74728]
[1740406406720,3.5945,2676.4,2676.3,0.74728]
[1740406407225,3.042,2676.4,2676.3,0.74728]
[1740406408222,3.042,2676.4,2676.2,0.00560999]
[1740406408528,0.74728,2676.3,2676.2,0.00560999]
[1740406409619,1.30938,2676.3,2676.2,0.00560999]
[1740406412123,4.29638,2676.3,2676.2,0.00560999]
[1740406412427,7.50418,2676.3,2676.2,0.00560999]
[1740406414426,0.00560999,2676.5,2676.2,0.75291999]
[1740406414628,0.00560999,2676.5,2676.4,0.74725]
[1740406415029,0.00560999,2676.5,2676.4,41.54725]
[1740406415230,9.99e-06,2676.5,2676.4,41.54725]
[1740406416028,9.99e-06,2676.5,2676.4,47.54725]
[1740406420029,9.99e-06,2676.5,2676.4,41.54725]
[1740406420431,9.99e-06,2676.5,2676.4,0.74725]
[1740406420929,9.99e-06,2676.5,2676.4,3.78925]
[1740406422133,9.99e-06,2676.5,2676.4,9.78925]
[1740406422835,9.99e-06,2676.5,2676.4,50.58925]
[1740406423045,9.99e-06,2676.5,2676.4,0.74725]
[1740406423834,0.74722999,2676.5,2676.4,0.74725]
[1740406424034,0.74725,2676.4,2676.3,0.74727]
[1740406424235,9.99e-06,2676.5,2676.4,0.74725]
[1740406424535,0.74722999,2676.5,2676.4,0.74725]
[1740406424734,9.99e-06,2676.5,2676.4,0.74725]
[1740406426540,0.74722999,2676.5,2676.4,0.74725]
[1740406427040,9.99e-06,2676.5,2676.4,0.74725]
[1740406427441,0.74722999,2676.5,2676.4,0.74725]
[1740406427740,9.99e-06,2676.5,2676.4,0.74725]
[1740406427941,0.74722999,2676.5,2676.4,0.74725]
[1740406429043,0.74728,2676.3,2676.2,0.00560999]
[1740406429246,3.78928,2676.3,2676.2,0.00560999]
[1740406430839,0.74745,2675.7,2675.6,0.74746]
[1740406431045,3.95521,2675.9,2675.8,0.74742]
[1740406431238,3.2078,2675.9,2675.4,1.86884]
[1740406431543,0.74744,2675.8,2675.7,0.74742]
[1740406431743,0.74748,2675.7,2675.6,0.74746]
[1740406432140,1.86857,2675.8,2675.4,0.00560999]
[1740406432346,0.7475,2675.5,2675.4,0.75310999]
[1740406433439,3.2078,2675.6,2675.4,0.00560999]
[1740406433645,0.7475,2675.5,2675.4,0.00560999]
[1740406433841,1.2917,2675.5,2675.4,0.00560999]
[1740406434252,4.3337,2675.5,2675.4,0.00560999]
[1740406434741,0.74763,2675.1,2674.8,41.3797]
[1740406434943,0.74763,2675.1,2675.0,0.74761]
[1740406435749,0.74767,2675.0,2674.9,0.74765]
[1740406436139,0.74764,2675.1,2675.0,0.74762]
[1740406436850,0.74767,2675.0,2674.9,0.74766]
[1740406437343,0.7477,2674.8,2674.7,41.54771]
[1740406437848,0.7477,2674.8,2674.7,0.74771]
[1740406438248,3.21340999,2675.0,2674.4,41.3516]
[1740406438442,0.552,2674.9,2674.4,41.3516]
[1740406438642,0.552,2674.9,2674.4,0.5516]
[1740406443554,3.2078,2674.7,2673.9,3.2078]
[1740406443748,3.043,2674.6,2673.9,4.301]
[1740406444057,3.5955,2674.6,2674.0,40.8]
[1740406444257,3.2078,2674.7,2674.6,0.74776]
[1740406444258,6.2508,2674.7,2674.6,0.74776]
[1740406445355,3.2078,2674.7,2674.6,0.74776]
[1740406445948,3.95553,2674.7,2674.6,0.74776]
[1740406446149,3.95553,2674.7,2674.5,0.5504]
[1740406446150,0.74776,2674.6,2674.5,1.29817]
[1740406446346,3.95555,2674.7,2674.2,3.2078]
[1740406446556,3.2078,2674.7,2674.2,5.07745]
[1740406446754,0.74777,2674.6,2674.5,0.74777]
[1740406447359,0.74779,2674.5,2674.4,0.74778]
[1740406447653,0.74777,2674.6,2674.5,0.74776]
[1740406448156,0.74781,2674.5,2674.4,0.7478]
[1740406448346,0.74778,2674.6,2674.5,0.74777]
[1740406448548,3.2078,2674.7,2674.6,0.74776]
[1740406451260,3.95553,2674.7,2674.6,0.74776]
[1740406451857,0.74777,2674.6,2674.5,0.74776]
[1740406452061,3.2078,2674.7,2674.6,0.74776]
[1740406452255,3.2078,2674.7,2674.2,3.2078]
[1740406452660,3.2078,2674.7,2674.3,3.044]
[1740406452855,3.21340999,2675.0,2674.4,0.5433]
[1740406453057,0.00560999,2675.0,2674.5,3.2078]
[1740406453257,0.00560999,2675.0,2674.6,0.543]
[1740406453563,0.00560999,2675.0,2674.8,3.2078]
[1740406454363,3.044,2674.9,2674.1,3.2078]
[1740406454563,3.2078,2674.6,2674.2,0.5627]
[1740406455453,3.95556,2674.6,2674.5,0.74778]
[1740406455655,3.2078,2674.6,2674.5,0.74778]
[1740406456161,3.2078,2674.6,2674.2,0.5627]
[1740406456359,0.74784,2674.3,2674.2,1.31055]
[1740406456561,3.2078,2674.6,2674.2,0.5627]
[1740406456762,0.74779,2674.5,2674.4,0.74779]
[1740406457260,3.2078,2674.6,2674.2,0.5627]
[1740406457663,3.95558,2674.6,2674.5,0.74778]
[1740406458361,0.74779,2674.5,2674.4,0.74779]
[1740406458757,3.2078,2674.6,2674.2,0.5627]
[1740406458961,0.74782,2674.4,2674.3,0.74782]
[1740406459158,0.74784,2674.3,2674.2,0.5627]
[1740406459362,0.74784,2674.3,2674.2,1.31057]
[1740406459960,3.2078,2674.3,2674.1,0.5624]
[1740406460160,3.2078,2674.3,2674.2,0.74783]
[1740406460466,3.95564,2674.3,2674.2,0.74783]
[1740406461162,3.2078,2674.3,2674.1,0.5624]
[1740406464670,6.2518,2674.5,2674.1,0.5624]
[1740406472277,3.2078,2674.2,2673.6,3.2078]
[1740406472478,3.2078,2674.2,2673.5,1.1673]
[1740406472479,3.044,2674.1,2673.5,1.1673]
[1740406472677,3.6381,2674.1,2673.5,1.1673]
[1740406474081,3.044,2674.1,2673.5,4.3751]
[1740406474480,3.83016646,2674.1,2673.5,4.3751]
[1740406474880,3.044,2674.1,2673.5,4.3751]
[1740406475384,0.74793,2674.0,2673.6,0.74804]
[1740406475682,3.79192,2674.1,2674.0,0.74792]
[1740406475884,3.2078,2674.2,2674.1,0.7479]
[1740406476184,3.5868,2674.3,2673.8,5.07776]
[1740406476387,0.74794,2674.0,2673.9,0.74794]
[1740406476576,3.2078,2674.2,2673.5,1.1673]
[1740406476782,3.7722,2674.2,2673.5,1.1673]
[1740406476979,0.74796,2673.9,2673.8,0.74796]
[1740406477287,0.74799,2673.8,2673.7,0.74799]
[1740406477489,3.7722,2674.2,2673.5,3.03744]
[1740406477680,3.7722,2674.2,2673.9,0.74795]
[1740406477990,0.74795,2674.0,2673.9,0.74795]
[1740406478474,3.7722,2674.2,2673.5,1.1673]
[1740406478674,3.7722,2674.2,2673.4,0.74808]
[1740406478675,0.7481,2673.5,2673.4,0.74808]
[1740406478873,3.2078,2673.8,2673.6,0.74802]
[1740406478874,0.74801,2673.7,2673.6,0.74802]
[1740406479081,0.74806,2673.6,2673.5,0.74805]
[1740406479283,0.5789,2673.7,2673.1,5.63618]
[1740406479486,0.5789,2673.7,2673.6,0.74804]
[1740406480093,0.00560999,2673.9,2673.8,0.74798]
[1740406480883,0.75355999,2673.9,2673.8,0.74798]
[1740406481081,0.00560999,2673.9,2673.8,0.74798]
[1740406482181,0.00560999,2673.9,2673.7,1.87928]
[1740406482381,0.74798,2673.8,2673.7,1.87928]
[1740406482581,0.00560999,2673.9,2673.7,1.1313]
[1740406482782,0.75358999,2673.9,2673.8,0.74798]
[1740406483684,0.74798,2673.8,2673.7,1.87928]
[1740406483877,0.75358999,2673.9,2673.8,0.74798]
[1740406484482,0.00560999,2673.9,2673.8,0.74798]
[1740406485087,0.75355999,2673.9,2673.8,0.74798]
[1740406485384,0.00560999,2673.9,2673.8,0.74798]
[1740406486291,0.00560999,2673.9,2673.8,4.52658]
[1740406486486,3.044,2674.5,2673.8,7.51842]
[1740406486688,4.9686,2674.8,2674.3,1.86961]
[1740406486887,3.95542,2675.1,2675.0,0.74763]
[1740406487292,4.74203922,2675.1,2675.0,0.74763]
[1740406487995,3.99441922,2675.1,2675.0,0.74763]
[1740406488488,4.74203922,2675.1,2675.0,0.74763]
[1740406488692,3.99441922,2675.1,2675.0,0.74763]
[1740406488991,3.2078,2675.1,2675.0,0.74763]
[1740406489396,0.00560999,2675.3,2675.2,0.74759]
[1740406490184,0.00560999,2675.3,2674.9,0.74765]
[1740406490389,0.74764,2675.1,2674.9,0.74764]
[1740406490691,0.74767,2674.9,2674.8,0.00560999]
[1740406491489,4.3404,2675.1,2674.9,0.74764]
[1740406491786,3.7494,2675.1,2674.8,0.00560999]